{"text_format":"3","workbook":"xlsx","n_sheets":11,"sheets":["Data","Worksheet A (1)","Worksheet B (1)","Worksheet A (2)","Worksheet B (2)","Worksheet A (3)","Worksheet B (3)","Worksheet A (4)","Worksheet B (4)","Rules","How to use the generator"],"not_rendered":{"images":3,"macros":1},"read":"whole","date_system":"1900"}

{"sheet":"Data","index":0,"n_rows":9,"n_cols":4,"rows_kept":9,"merged":[[1,1,4,2],[1,3,4,3],[7,1,7,2],[8,1,8,2]]}
[]
[null,"Welcome to the Mutual dictation generator! Please type/paste your text into the grid below.\nIf you are typing your text, press ALT and Enter to add a line break/start a new line. When you are ready, click on the Worksheet tabs at the bottom of the page. For more information, read the Rules tab. Your Worksheets are now ready to print.",null,"EFLsummerschool"]
[]
[]
[]
[null,"Citation:"]
[null,"    Game name:"]
[null,{"$f":"IF(D9>1810,\"You might have written too much\", \"Enter your text here\")","v":"Enter your text here"},null,"Text: 1810 characters max (including spaces)"]
[{"$nulls":3},{"$f":"LEN(B9)","v":0}]

{"sheet":"Worksheet A (1)","index":1,"n_rows":5,"n_cols":3,"rows_kept":5,"merged":[[3,1,3,2],[4,1,7,2]]}
[]
[null,{"$f":"IF(Data!C7=\"\",\"\", \"(\" & Data!C7 & \")\")","v":""},"Mutual dictation"]
[null,{"$f":"IF(Data!C6=\"\",\"\",\"(Source: \" & Data!C6 & \")\")","v":""},"eflsummerschool.wordpress.com"]
[null,"Worksheet A (1). Fill in the gaps:"]
[null,{"$f":"ReplaceWords(Data!B9,\"__________________\",30)","v":""}]

{"sheet":"Worksheet B (1)","index":2,"n_rows":5,"n_cols":3,"rows_kept":5,"merged":[[3,1,3,2],[4,1,7,2]]}
[]
[null,{"$f":"IF(Data!C7=\"\",\"\", \"(\" & Data!C7 & \")\")","v":""},"Mutual dictation"]
[null,{"$f":"IF(Data!C6=\"\",\"\",\"(Source: \" & Data!C6 & \")\")","v":""},"eflsummerschool.wordpress.com"]
[null,"Worksheet B (1). Fill in the gaps:"]
[null,{"$f":"ReplaceWords(Data!B9,\"__________________\",34)","v":""}]

{"sheet":"Worksheet A (2)","index":3,"n_rows":5,"n_cols":3,"rows_kept":5,"merged":[[3,1,3,2],[4,1,7,2]]}
[]
[null,{"$f":"IF(Data!C7=\"\",\"\", \"(\" & Data!C7 & \")\")","v":""},"Mutual dictation"]
[null,{"$f":"IF(Data!C6=\"\",\"\",\"(Source: \" & Data!C6 & \")\")","v":""},"eflsummerschool.wordpress.com"]
[null,"Worksheet A (2). Fill in the gaps:"]
[null,{"$f":"ReplaceWords(Data!B9,\"__________________\",20)","v":""}]

{"sheet":"Worksheet B (2)","index":4,"n_rows":5,"n_cols":3,"rows_kept":5,"merged":[[3,1,3,2],[4,1,7,2]]}
[]
[null,{"$f":"IF(Data!C7=\"\",\"\", \"(\" & Data!C7 & \")\")","v":""},"Mutual dictation"]
[null,{"$f":"IF(Data!C6=\"\",\"\",\"(Source: \" & Data!C6 & \")\")","v":""},"eflsummerschool.wordpress.com"]
[null,"Worksheet B (2). Fill in the gaps:"]
[null,{"$f":"ReplaceWords(Data!B9,\"__________________\",24)","v":""}]

{"sheet":"Worksheet A (3)","index":5,"n_rows":5,"n_cols":3,"rows_kept":5,"merged":[[3,1,3,2],[4,1,7,2]]}
[]
[null,{"$f":"IF(Data!C7=\"\",\"\", \"(\" & Data!C7 & \")\")","v":""},"Mutual dictation"]
[null,{"$f":"IF(Data!C6=\"\",\"\",\"(Source: \" & Data!C6 & \")\")","v":""},"eflsummerschool.wordpress.com"]
[null,"Worksheet A (3). Fill in the gaps:"]
[null,{"$f":"ReplaceWords(Data!B9,\"__________________\",10)","v":""}]

{"sheet":"Worksheet B (3)","index":6,"n_rows":5,"n_cols":3,"rows_kept":5,"merged":[[3,1,3,2],[4,1,7,2]]}
[]
[null,{"$f":"IF(Data!C7=\"\",\"\", \"(\" & Data!C7 & \")\")","v":""},"Mutual dictation"]
[null,{"$f":"IF(Data!C6=\"\",\"\",\"(Source: \" & Data!C6 & \")\")","v":""},"eflsummerschool.wordpress.com"]
[null,"Worksheet B (3). Fill in the gaps:"]
[null,{"$f":"ReplaceWords(Data!B9,\"__________________\",14)","v":""}]

{"sheet":"Worksheet A (4)","index":7,"n_rows":5,"n_cols":3,"rows_kept":5,"merged":[[3,1,3,2],[4,1,7,2]]}
[]
[null,{"$f":"IF(Data!C7=\"\",\"\", \"(\" & Data!C7 & \")\")","v":""},"Mutual dictation"]
[null,{"$f":"IF(Data!C6=\"\",\"\",\"(Source: \" & Data!C6 & \")\")","v":""},"eflsummerschool.wordpress.com"]
[null,"Worksheet A (4). Fill in the gaps:"]
[null,{"$f":"ReplaceWords(Data!B9,\"__________________\",3)","v":""}]

{"sheet":"Worksheet B (4)","index":8,"n_rows":5,"n_cols":3,"rows_kept":5,"merged":[[3,1,3,2],[4,1,7,2]]}
[]
[null,{"$f":"IF(Data!C7=\"\",\"\", \"(\" & Data!C7 & \")\")","v":""},"Mutual dictation"]
[null,{"$f":"IF(Data!C6=\"\",\"\",\"(Source: \" & Data!C6 & \")\")","v":""},"eflsummerschool.wordpress.com"]
[null,"Worksheet B (4). Fill in the gaps:"]
[null,{"$f":"ReplaceWords(Data!B9,\"__________________\",4)","v":""}]

{"sheet":"Rules","index":9,"n_rows":7,"n_cols":2,"rows_kept":7}
[]
[null,"The rules"]
[null,"1. Each student pair needs a Worksheet A and Worksheet B (one each). Both Worksheets will have the same text but different gaps."]
[null,"2. If there is an odd number, make one group of three. Give the third student Worksheet A."]
[null,"3. Student pairs should sit facing each other."]
[null,"4. Each student should not let their partner see their Worksheet."]
[null,"5. Student pairs dictate their text and help each other to complete the gaps in their Worksheet."]

{"sheet":"How to use the generator","index":10,"n_rows":5,"n_cols":2,"rows_kept":5}
[]
[null,"How to use the generator"]
[null,"1.    Type/paste your text into the grid on the Data sheet."]
[null,"2.    There are four pairs of Worksheets and four levels of challenge. Worksheets A and B (1) are the easiest, while Worksheets A and B (4) are the most difficult."]
[null,"3.    Your Worksheets are ready to print."]